[Event "FIDE World School-ch O-15 2025"]
[Site "Vrnjacka Banja"]
[Date "2025.03.25"]
[Round "6.1"]
[White "Scheglov, Gleb"]
[Black "Tabatadze, Erekle"]
[Result "1-0"]
[Annotator "TA"]
[ECO "E68"]
[WhiteElo "2306"]
[BlackElo "2180"]
[PlyCount "85"]
[EventDate "2025.03.19"]
[EventType "swiss"]
[EventCountry "SRB"]
[SourceTitle "playchess.com"]
[Source "ChessBase"]
[SourceQuality "1"]
[TimeControl "5400+30"]

{[%evp 26,85,21,29,35,21,30,34,37,25,29,29,27,31,38,36,27,50,39,0,8,15,16,12,0,0,79,79,79,79,79,79,63,52,156,106,106,100,106,113,110,115,103,97,217,201,223,210,217,215,223,222,293,277,320,293,350,307,386,379,956,189]} 1. d4 {[%emt 0:01:51]} Nf6 {[%emt 0:01:16]} 2. Nf3 {[%emt 0:00:42]} g6 {[%emt 0:04:25]} 3. g3 {[%emt 0:00:17]} Bg7 {[%emt 0:00:57]} 4. Bg2 {[%emt 0:00:09]} O-O {[%emt 0:00:41]} 5. O-O {[%emt 0:00:06]} d6 {[%emt 0:00:50]} 6. c4 {[%emt 0:01:01]} Nbd7 {[%emt 0:00:20]} 7. Nc3 {[%emt 0:00:26]} e5 {[%emt 0:01:02]} 8. h3 {[%emt 0:01:33]} Re8 {[%emt 0:00:24]} 9. e4 {[%emt 0:00:53]} exd4 {[%emt 0:00:25]} 10. Nxd4 {[%emt 0:00:11][%cal Bf3d4,Bd4e2,Be2c3,Bc3d5][%mdl 32]} a6 {[%emt 0:05:22]} 11. Re1 {[%emt 0:07:21]} Rb8 {[%emt 0:01:06]} 12. Be3 {[%emt 0:08:50]} Ne5 {[%emt 0:00:39] The main line 12...Ne5 scores better than 12...c5.} 13. b3 {[%emt 0:04:28]} c5 {[%emt 0:01:30]} 14. Nde2 {[%emt 0:02:03]} b5 {[%emt 0:00:22] E68: King's Indian: Fianchetto: 6...Nbd7 7 0-0 e5 8 e4.} 15. f4 {[%emt 0:17:22]} Ned7 {[%emt 0:00:09]} 16. Qxd6 {[%emt 0:05:17]} b4 {[%emt 0:00:07] White is slightly better.} 17. e5 {[%emt 0:00:27]} bxc3 {[%emt 0:00:04]} 18. Nxc3 {[%emt 0:00:09]} Nh5 {[%emt 0:00:53][%cal Bf6h5,Bh5g7,Bg7e6,Be6d4][%mdl 32]} 19. g4 {[%emt 0:04:14][%mdl 1024] White has compensation.} Bf8 {[%emt 0:00:19]} 20. Qd2 {[%emt 0:01:59]} (20. Qd3 $5 Ng7 $8 21. Rad1 $11) 20... Ng7 {[%emt 0:00:51]} 21. Rad1 {[%emt 0:01:57]} Ne6 {[%emt 0:00:24][%cal Oe6d4]} 22. Nd5 $146 {[%emt 0:02:35] Hoping for f5.} ({Predecessor:} 22. Ne4 Nd4 23. Bxd4 cxd4 24. Qxd4 Qa5 25. Qf2 Bc5 26. Nxc5 Qxc5 27. Rd6 Kg7 28. Bd5 Qxf2+ 29. Kxf2 {½-½ Naumenko,A (2181)-Volkov,A (2319) BL-LSS email 2013}) 22... Bb7 {[%emt 0:00:29][%cal Oe6d4]} 23. f5 {[%emt 0:08:31]} Nd4 {[%emt 0:32:11]} 24. Bg5 {[%emt 0:04:57]} Qc8 {[%emt 0:01:41]} (24... Nxe5 25. Bxd8 Bxd5 26. Rxe5 Rxe5 27. Bc7 $18) 25. Qf4 {[%emt 0:02:17]} Bg7 {[%emt 0:07:48] [#]} (25... Kh8 $1 $11) 26. e6 $1 $36 {[%emt 0:05:01][%mdl 2048] White has a king side majority Black is under strong pressure.} fxe6 {[%emt 0:01:32]} 27. f6 $1 {[%emt 0:05:00] The board is on fire. White is much more active.} Nxf6 {[%emt 0:08:23]} 28. Nxf6+ {[%emt 0:00:32]} Bxf6 {[%emt 0:00:09]} 29. Bxf6 {[%emt 0:00:07]} (29. Qxf6 Bxg2 30. Rxd4 (30. Kxg2 $2 Qb7+ 31. Kg3 Rf8 $19) 30... cxd4 $17 (30... Bxh3 $2 31. Rde4 $18)) 29... e5 {[%emt 0:07:19]} 30. Qg3 {[%emt 0:08:10]} (30. Rxe5 Bxg2 (30... Ne2+ 31. Rxe2 Rxe2 32. Rd8+ Qxd8 33. Bd5+ Bxd5 34. Bxd8 $11) 31. Kxg2 Qc6+ 32. Kg3 Rxe5 33. Qxe5 Qf3+ 34. Kh2 Rf8 35. Rxd4 Qf2+ (35... cxd4 36. Qe6+ Rf7 37. Qc8+ Rf8 38. Qe6+ Rf7 39. Qe8+ Rf8 40. Qe6+ $11) 36. Kh1 Qf1+ (36... cxd4 37. Qe6+ Rf7 38. Qe8+ Rf8 39. Qe6+ Rf7 40. Qc8+ Rf8 41. Qe6+ $11) 37. Kh2 Qf2+ (37... cxd4 38. Qd5+ Rf7 39. Qd8+ Rf8 40. Qd5+ Rf7 41. Qd8+ Rf8 42. Qd5+ $11) 38. Kh1 Qf1+ 39. Kh2 Qf2+ $11) (30. Bxe5 $142 Bxg2 31. Kxg2 (31. Bxd4 Rxe1+ 32. Rxe1 Bxh3 $16) 31... Qc6+ 32. Kg3) 30... Bxg2 {[%emt 0:07:37]} 31. Qxg2 {[%emt 0:00:05]} Qb7 {[%emt 0:00:11] [#]} 32. Qxb7 {[%emt 0:00:30]} (32. Bxe5 $2 Rxe5 33. Rxe5 Nf3+ 34. Kf1 Nxe5 $19) 32... Rxb7 {[%emt 0:00:06]} 33. Kg2 {[%emt 0:00:39] Wards off Nf3} (33. Rxe5 $2 {is the wrong capture.} Nf3+ 34. Kh1 Nxe5 $19) 33... Re6 {[%emt 0:07:04]} 34. g5 {[%emt 0:01:46]} h6 {[%emt 0:01:33]} 35. Rxe5 $18 {[%emt 0:00:51]} hxg5 {[%emt 0:00:28] [#]} 36. Rxd4 $1 {[%emt 0:00:51][%mdl 512]} Rxf6 {[%emt 0:00:08]} 37. Rxc5 {[%emt 0:00:37][%mdl 4096] Endgame KRR-KRR. White is a pawn up.} Re7 {[%emt 0:04:18]} 38. Rd2 {[%emt 0:00:27] Prevents Re2+} ({But not} 38. Rxg5 $6 Re2+ 39. Kg3 Rxa2 $16) 38... g4 {[%emt 0:00:19]} 39. hxg4 {[%emt 0:00:06]} Re4 {[%emt 0:00:29]} 40. Kg3 {[%emt 0:00:27]} Rf1 {[%emt 0:04:02]} 41. Rc8+ {[%emt 0:00:17]} Kg7 {[%emt 0:01:42]} 42. Rd7+ {[%emt 0:00:11]} Kh6 $2 {[%emt 0:00:18]} (42... Kf6 43. Rf8+ Ke6) 43. Rh8+ {[%emt 0:00:08] Weighted Error Value: White=0.08 (flawless) /Black=0.37  Mistake:       	White=1     	Black=4      Inaccurate:     	White=1     	Black=1      OK:         	White=11    	Black=13     Best:        	White=4     	Black=2      Strong:       	White=1     	---        Brilliant:      	White=2     	---} 1-0

[Event "FIDE World School-ch O-15 2025"]
[Site "Vrnjacka Banja"]
[Date "2025.03.25"]
[Round "6.2"]
[White "Kabinazar, Nurmukhammed"]
[Black "Talgatov, Nazar"]
[Result "0-1"]
[Annotator "NA RC"]
[ECO "C60"]
[WhiteElo "2057"]
[BlackElo "2083"]
[PlyCount "122"]
[EventDate "2025.03.19"]
[EventType "swiss"]
[EventCountry "SRB"]
[SourceTitle "playchess.com"]
[Source "ChessBase"]
[SourceQuality "1"]
[TimeControl "5400+30"]

1. e4 {[%emt 0:00:12]} e5 {[%emt 0:00:41]} 2. Nf3 {[%emt 0:00:40]} Nc6 {[%emt 0:00:59]} 3. Bb5 {[%emt 0:00:30]} g6 {[%emt 0:00:33]} 4. O-O {[%emt 0:05:29]} Bg7 {[%emt 0:00:08]} 5. c3 {[%emt 0:04:26]} a6 {[%emt 0:00:25]} 6. Ba4 {[%emt 0:00:37]} Nge7 {[%emt 0:01:09]} 7. d4 {[%emt 0:03:18]} exd4 {[%emt 0:00:26]} 8. Nxd4 {[%emt 0:00:50]} O-O {[%emt 0:04:23]} 9. Be3 {[%emt 0:01:53]} b5 {[%emt 0:03:37]} 10. Bc2 {[%emt 0:02:12]} Bb7 {[%emt 0:07:15]} 11. Nd2 {[%emt 0:12:22]} d5 {[%emt 0:06:55]} 12. N2b3 {[%emt 0:09:35]} Nxd4 {[%emt 0:03:58]} 13. Bxd4 {[%emt 0:00:48]} Bxd4 {[%emt 0:04:15]} 14. Qxd4 {[%emt 0:12:51]} dxe4 {[%emt 0:01:11]} 15. Rfd1 {[%emt 0:02:39]} Qxd4 {[%emt 0:15:00]} 16. Rd2 {[%emt 0:40:08]} Qd3 17. Rxd3 {[%emt 0:00:00]} Nf5 {[%emt 0:03:37]} 18. Rd7 {[%emt 0:00:00]} Rac8 {[%emt 0:01:00]} 19. Nc5 {[%emt 0:00:00]} Bc6 {[%emt 0:01:54]} 20. Bxe4 {[%emt 0:00:00]} Bxd7 {[%emt 0:02:03]} 21. Nxd7 {[%emt 0:00:00]} Rfd8 {[%emt 0:05:33]} 22. Bb7 {[%emt 0:00:00]} Rxd7 {[%emt 0:00:16]} 23. Bxc8 {[%emt 0:00:00]} Rd2 {[%emt 0:00:01]} 24. Bxa6 {[%emt 0:00:00]} Rxb2 {[%emt 0:00:09]} 25. a4 {[%emt 0:00:00]} bxa4 {[%emt 0:00:45]} 26. Rxa4 {[%emt 0:00:00]} Rc2 {[%emt 0:00:26]} 27. Ra3 {[%emt 0:00:00]} Rc1+ {[%emt 0:02:30]} 28. Bf1 {[%emt 0:00:00]} Nd6 {[%emt 0:00:11]} 29. f3 {[%emt 0:00:00]} Nc4 {[%emt 0:01:13]} 30. Ra8+ {[%emt 0:00:00]} Kg7 {[%emt 0:00:01]} 31. Kf2 {[%emt 0:00:00]} Nd2 {[%emt 0:00:53]} 32. Bd3 {[%emt 0:00:00]} Rxc3 {[%emt 0:00:26]} 33. Ke2 {[%emt 0:00:00]} Nb3 {[%emt 0:00:14]} 34. Be4 {[%emt 0:00:00]} h5 {[%emt 0:11:32]} 35. h4 {[%emt 0:00:00]} Nc5 {[%emt 0:00:19]} 36. Bd5 {[%emt 0:00:00]} Rc2+ {[%emt 0:05:09]} 37. Ke3 {[%emt 0:00:00]} Nd7 {[%emt 0:00:29]} 38. g4 {[%emt 0:00:00]} Nf6 {[%emt 0:05:29]} 39. Be4 {[%emt 0:00:00]} Nxe4 {[%emt 0:00:49]} 40. Kxe4 {[%emt 0:00:00]} hxg4 {[%emt 0:00:06]} 41. fxg4 {[%emt 0:00:00]} Rh2 {[%emt 0:00:05]} 42. g5 {[%emt 0:04:23]} Rxh4+ {[%emt 0:00:07]} 43. Kf3 {[%emt 0:00:00]} Rc4 {[%emt 0:04:01]} 44. Rd8 {[%emt 0:00:06]} Rc6 {[%emt 0:02:41]} 45. Kg4 {[%emt 0:01:21]} Rd6 {[%emt 0:00:06]} 46. Re8 {[%emt 0:00:10]} Re6 {[%emt 0:00:32]} 47. Rd8 {[%emt 0:00:19]} Re7 {[%emt 0:00:05]} 48. Rc8 {[%emt 0:00:40]} f6 {[%emt 0:00:10]} 49. gxf6+ {[%emt 0:00:14]} Kxf6 {[%emt 0:00:03]} 50. Rf8+ {[%emt 0:00:07]} Rf7 {[%emt 0:00:32]} 51. Ra8 {[%emt 0:00:30]} Ke5 {[%emt 0:00:44]} 52. Kg5 {[%emt 0:00:01]} c5 {[%emt 0:00:36]} 53. Rc8 {[%emt 0:00:12]} Kd4 {[%emt 0:00:04]} 54. Kxg6 {[%emt 0:00:04]} Rf1 {[%emt 0:00:09]} 55. Kg5 {[%emt 0:00:03]} c4 {[%emt 0:00:05]} 56. Kg4 {[%emt 0:00:02]} c3 {[%emt 0:00:07]} 57. Rd8+ {[%emt 0:00:02]} Ke3 {[%emt 0:00:12]} 58. Re8+ {[%emt 0:00:04]} Kd2 {[%emt 0:00:05]} 59. Rd8+ {[%emt 0:00:05]} Kc1 {[%emt 0:00:08]} 60. Rc8 {[%emt 0:00:01]} c2 {[%emt 0:00:06]} 61. Kg3 {[%emt 0:00:03]} Kb2 {[%emt 0:00:11]} 0-1

[Event "FIDE World School-ch O-15 2025"]
[Site "Vrnjacka Banja"]
[Date "2025.03.25"]
[Round "6.3"]
[White "Dandeniya, D D L N"]
[Black "Yessengali, Adizhan"]
[Result "0-1"]
[Annotator "NA RC"]
[ECO "A05"]
[WhiteElo "1881"]
[BlackElo "1955"]
[PlyCount "156"]
[EventDate "2025.03.19"]
[EventType "swiss"]
[EventCountry "SRB"]
[SourceTitle "playchess.com"]
[Source "ChessBase"]
[SourceQuality "1"]
[TimeControl "5400+30"]

1. Nf3 {[%emt 0:00:06]} Nf6 {[%emt 0:01:27]} 2. g3 {[%emt 0:00:12]} b5 {[%emt 0:00:03]} 3. Bg2 {[%emt 0:00:12]} Bb7 {[%emt 0:00:04]} 4. O-O {[%emt 0:00:12]} e6 {[%emt 0:00:01]} 5. d3 {[%emt 0:00:08]} d5 {[%emt 0:03:46]} 6. Nbd2 {[%emt 0:00:15]} c5 {[%emt 0:07:13]} 7. c4 {[%emt 0:02:55]} b4 {[%emt 0:00:04]} 8. b3 {[%emt 0:01:25]} Be7 {[%emt 0:05:55]} 9. Bb2 {[%emt 0:00:32]} O-O {[%emt 0:05:03]} 10. Qc2 {[%emt 0:01:47]} Nc6 {[%emt 0:05:59]} 11. Rad1 {[%emt 0:01:44]} Qb6 {[%emt 0:04:08]} 12. e3 {[%emt 0:02:54]} Rac8 {[%emt 0:04:13]} 13. Rfe1 {[%emt 0:00:25]} Rfd8 {[%emt 0:04:38]} 14. Qb1 {[%emt 0:01:33]} Qc7 {[%emt 0:07:17]} 15. h3 {[%emt 0:02:17]} h6 {[%emt 0:08:17]} 16. Qa1 {[%emt 0:09:39]} Ne8 {[%emt 0:09:02]} 17. d4 {[%emt 0:08:07]} cxd4 {[%emt 0:01:59]} 18. exd4 {[%emt 0:01:52]} Nd6 {[%emt 0:01:18]} 19. cxd5 {[%emt 0:13:34]} exd5 {[%emt 0:00:03]} 20. Ne5 {[%emt 0:00:09]} Nxe5 {[%emt 0:05:46]} 21. dxe5 {[%emt 0:00:33]} Nb5 {[%emt 0:00:02]} 22. Nf3 {[%emt 0:22:42]} Nc3 {[%emt 0:04:42]} 23. Nd4 {[%emt 0:00:11]} Qb6 {[%emt 0:01:22]} 24. Bc1 {[%emt 0:04:28]} Nxd1 {[%emt 0:06:27]} 25. Rxd1 {[%emt 0:00:03]} Bc5 {[%emt 0:00:08]} 26. Bb2 {[%emt 0:01:23]} Bxd4 {[%emt 0:00:47]} 27. Bxd4 {[%emt 0:01:10]} Qe6 {[%emt 0:00:22]} 28. Bxa7 {[%emt 0:01:22]} Rc2 {[%emt 0:00:09]} 29. Be3 {[%emt 0:05:45]} Qa6 {[%emt 0:05:05]} 30. Qd4 {[%emt 0:00:57]} Qa5 {[%emt 0:01:12]} 31. e6 {[%emt 0:04:01]} fxe6 {[%emt 0:02:29]} 32. Qg4 {[%emt 0:00:01]} Qc7 {[%emt 0:00:01]} 33. Qxe6+ {[%emt 0:01:14]} Qf7 {[%emt 0:00:03]} 34. Qg4 {[%emt 0:01:16]} Re8 {[%emt 0:00:24]} 35. Qd4 {[%emt 0:02:34]} Rxa2 {[%emt 0:04:07]} 36. h4 {[%emt 0:08:09]} Re2 {[%emt 0:00:37]} 37. Bf4 {[%emt 0:01:20]} Rc2 {[%emt 0:02:07]} 38. Rd3 {[%emt 0:01:05]} Re1+ {[%emt 0:01:31]} 39. Kh2 {[%emt 0:00:01]} Ree2 {[%emt 0:00:46]} 40. Rf3 {[%emt 0:00:27]} Re4 {[%emt 0:00:26]} 41. Qb6 {[%emt 0:00:17]} Rc6 {[%emt 0:00:33]} 42. Qd8+ {[%emt 0:00:28]} Re8 {[%emt 0:00:04]} 43. Qa5 {[%emt 0:00:09]} Rf6 {[%emt 0:01:21]} 44. Rd3 {[%emt 0:02:22]} Rxf4 {[%emt 0:00:36]} 45. gxf4 Qxf4+ {[%emt 0:00:01]} 46. Rg3 {[%emt 0:00:02]} Qxh4+ {[%emt 0:00:18]} 47. Bh3 {[%emt 0:00:06]} Qf4 {[%emt 0:01:08]} 48. Qa7 {[%emt 0:00:57]} Re7 {[%emt 0:00:27]} 49. Qb6 {[%emt 0:00:35]} Qc7 {[%emt 0:00:39]} 50. Qxb4 {[%emt 0:00:13]} h5 {[%emt 0:00:27]} 51. Qh4 {[%emt 0:00:55]} Qe5 {[%emt 0:00:32]} 52. Bg2 {[%emt 0:00:36]} Rf7 {[%emt 0:00:25]} 53. Qd8+ {[%emt 0:00:39]} Rf8 {[%emt 0:00:04]} 54. Qg5 {[%emt 0:00:11]} Rf5 {[%emt 0:01:01]} 55. Qd8+ {[%emt 0:00:08]} Rf8 {[%emt 0:00:03]} 56. Qg5 {[%emt 0:00:13]} Rf5 {[%emt 0:00:03]} 57. Qd8+ {[%emt 0:00:24]} Kh7 {[%emt 0:00:00]} 58. f3 {[%emt 0:01:44]} Bc8 {[%emt 0:00:00]} 59. Bh3 {[%emt 0:00:46]} Rxf3 {[%emt 0:00:00]} 60. Qg5 {[%emt 0:00:32]} Qxg3+ {[%emt 0:00:00]} 61. Qxg3 {[%emt 0:00:02]} Rxg3 {[%emt 0:00:14]} 62. Kxg3 {[%emt 0:00:09]} Bxh3 {[%emt 0:00:05]} 63. Kxh3 {[%emt 0:00:04]} Kg6 {[%emt 0:00:13]} 64. b4 {[%emt 0:00:09]} Kf6 {[%emt 0:00:03]} 65. b5 {[%emt 0:00:05]} Ke6 {[%emt 0:00:02]} 66. b6 {[%emt 0:00:06]} Kd6 {[%emt 0:00:02]} 67. b7 {[%emt 0:00:05]} Kc7 {[%emt 0:00:04]} 68. Kh2 {[%emt 0:00:05]} Kxb7 {[%emt 0:00:02]} 69. Kh1 {[%emt 0:00:07]} g5 {[%emt 0:00:04]} 70. Kg1 {[%emt 0:00:04]} g4 {[%emt 0:00:04]} 71. Kg2 {[%emt 0:00:05]} h4 {[%emt 0:00:04]} 72. Kh2 {[%emt 0:00:03]} d4 {[%emt 0:00:05]} 73. Kg2 {[%emt 0:00:03]} d3 {[%emt 0:00:02]} 74. Kh2 {[%emt 0:00:08]} d2 {[%emt 0:00:03]} 75. Kg2 {[%emt 0:00:06]} d1=Q {[%emt 0:00:10]} 76. Kh2 {[%emt 0:00:06]} Qe2+ {[%emt 0:00:04]} 77. Kh1 {[%emt 0:00:06]} h3 {[%emt 0:00:04]} 78. Kg1 {[%emt 0:00:04]} Qg2# {[%emt 0:00:05]} 0-1

[Event "FIDE World School-ch O-15 2025"]
[Site "Vrnjacka Banja"]
[Date "2025.03.25"]
[Round "6.4"]
[White "Mane, Arnav"]
[Black "Khaleev, Timofey D"]
[Result "1/2-1/2"]
[Annotator "NA RC"]
[ECO "B27"]
[WhiteElo "1748"]
[BlackElo "1919"]
[PlyCount "51"]
[EventDate "2025.03.19"]
[EventType "swiss"]
[EventCountry "SRB"]
[SourceTitle "playchess.com"]
[Source "ChessBase"]
[SourceQuality "1"]
[TimeControl "5400+30"]

1. e4 {[%emt 0:00:19]} c5 {[%emt 0:00:05]} 2. Nf3 {[%emt 0:00:05]} g6 {[%emt 0:00:04]} 3. c3 {[%emt 0:00:04]} d5 {[%emt 0:00:03]} 4. e5 {[%emt 0:00:04]} Bg4 {[%emt 0:00:03]} 5. Bb5+ {[%emt 0:00:10]} Nc6 {[%emt 0:00:05]} 6. d4 {[%emt 0:00:16]} cxd4 {[%emt 0:00:08]} 7. cxd4 {[%emt 0:00:09]} Qb6 {[%emt 0:00:08]} 8. Bxc6+ {[%emt 0:07:33]} bxc6 {[%emt 0:00:20]} 9. Nbd2 {[%emt 0:00:36]} Qb5 {[%emt 0:00:06]} 10. Qe2 {[%emt 0:11:33]} e6 {[%emt 0:00:14]} 11. Qxb5 {[%emt 0:11:01]} cxb5 {[%emt 0:00:32]} 12. O-O {[%emt 0:00:06]} Rc8 {[%emt 0:07:18]} 13. h3 {[%emt 0:04:07]} Bxf3 {[%emt 0:00:24]} 14. Nxf3 {[%emt 0:00:09]} h5 {[%emt 0:09:17]} 15. Bg5 {[%emt 0:02:21]} Bh6 {[%emt 0:13:44]} 16. Rfc1 {[%emt 0:00:54]} Rxc1+ {[%emt 0:00:57]} 17. Rxc1 {[%emt 0:00:02]} Kd7 {[%emt 0:00:10]} 18. Rc5 {[%emt 0:01:53]} a6 {[%emt 0:00:17]} 19. Bf6 {[%emt 0:10:23]} Nxf6 {[%emt 0:04:49]} 20. exf6 {[%emt 0:00:07]} Bf4 {[%emt 0:00:47]} 21. g3 {[%emt 0:02:05]} Bd6 {[%emt 0:00:14]} 22. Rc1 {[%emt 0:01:24]} Ra8 {[%emt 0:03:26]} 23. Ng5 {[%emt 0:04:55]} Ke8 {[%emt 0:01:02]} 24. Rc6 {[%emt 0:00:30]} Kd7 {[%emt 0:00:05]} 25. Rc1 {[%emt 0:00:12]} Ke8 {[%emt 0:00:06]} 26. Rc6 {[%emt 0:00:06]} 1/2-1/2

[Event "FIDE World School-ch O-15 2025"]
[Site "Vrnjacka Banja"]
[Date "2025.03.25"]
[Round "6.5"]
[White "Dascalescu, Adelin-Stefan"]
[Black "Tulendinov, Dinmukhammed"]
[Result "0-1"]
[Annotator "NA RC"]
[ECO "B13"]
[WhiteElo "2061"]
[BlackElo "2173"]
[PlyCount "100"]
[EventDate "2025.03.19"]
[EventType "swiss"]
[EventCountry "SRB"]
[SourceTitle "playchess.com"]
[Source "ChessBase"]
[SourceQuality "1"]
[TimeControl "5400+30"]

1. e3 {[%emt 0:00:02]} c5 {[%emt 0:02:17]} 2. c4 {[%emt 0:00:20]} Nf6 {[%emt 0:01:06]} 3. d4 {[%emt 0:00:05]} cxd4 {[%emt 0:00:21]} 4. exd4 {[%emt 0:00:06]} d5 {[%emt 0:00:03]} 5. Nc3 {[%emt 0:00:19]} Nc6 {[%emt 0:00:21]} 6. Nf3 {[%emt 0:01:37]} Bg4 {[%emt 0:01:51]} 7. Be3 {[%emt 0:02:52]} e6 {[%emt 0:04:45]} 8. h3 {[%emt 0:03:07]} Bh5 {[%emt 0:06:11]} 9. Qb3 {[%emt 0:09:48]} Bxf3 {[%emt 0:09:49]} 10. Qxb7 {[%emt 0:01:51]} Na5 {[%emt 0:23:09]} 11. Qb5+ {[%emt 0:00:18]} Nd7 {[%emt 0:00:01]} 12. gxf3 {[%emt 0:01:01]} Rb8 {[%emt 0:11:38]} 13. Qa6 {[%emt 0:00:48]} dxc4 {[%emt 0:05:59]} 14. d5 {[%emt 0:05:49]} Nc5 {[%emt 0:02:08]} 15. Bxc5 {[%emt 0:01:31]} Bxc5 {[%emt 0:00:01]} 16. Bxc4 {[%emt 0:06:36]} O-O {[%emt 0:05:18]} 17. O-O-O {[%emt 0:00:30]} Bb4 {[%emt 0:00:57]} 18. Bd3 {[%emt 0:06:05]} Bxc3 {[%emt 0:06:12]} 19. bxc3 {[%emt 0:00:08]} Qc7 {[%emt 0:00:29]} 20. Kc2 {[%emt 0:01:29]} Rb6 {[%emt 0:03:40]} 21. d6 {[%emt 0:00:08]} Qc5 {[%emt 0:00:21]} 22. Bxh7+ {[%emt 0:00:55]} Kxh7 {[%emt 0:00:08]} 23. Qd3+ {[%emt 0:00:03]} Kg8 {[%emt 0:00:01]} 24. Qd4 {[%emt 0:00:41]} Qxd4 {[%emt 0:06:52]} 25. Rxd4 {[%emt 0:00:11]} Rd8 {[%emt 0:00:17]} 26. Ra4 {[%emt 0:00:41]} Nc6 {[%emt 0:03:16]} 27. Rd1 {[%emt 0:01:31]} a6 {[%emt 0:00:59]} 28. f4 {[%emt 0:00:20]} Na7 {[%emt 0:01:14]} 29. d7 {[%emt 0:00:48]} Kf8 {[%emt 0:00:23]} 30. f5 {[%emt 0:04:47]} exf5 {[%emt 0:00:35]} 31. Rd5 {[%emt 0:01:01]} g6 {[%emt 0:00:48]} 32. Rda5 {[%emt 0:00:13]} Rxd7 {[%emt 0:01:05]} 33. Rxa6 {[%emt 0:00:03]} Rxa6 {[%emt 0:00:02]} 34. Rxa6 {[%emt 0:00:04]} Ke7 {[%emt 0:00:13]} 35. h4 {[%emt 0:00:11]} Nb5 {[%emt 0:01:02]} 36. a4 {[%emt 0:00:59]} Nd6 {[%emt 0:00:36]} 37. f3 {[%emt 0:00:47]} Ke6 {[%emt 0:01:18]} 38. Ra8 {[%emt 0:03:57]} Ke5 {[%emt 0:00:18]} 39. Kd3 {[%emt 0:01:44]} Kf4 {[%emt 0:00:38]} 40. Ke2 {[%emt 0:00:03]} Re7+ {[%emt 0:00:14]} 41. Kd3 {[%emt 0:00:38]} Kxf3 {[%emt 0:00:18]} 42. c4 {[%emt 0:00:04]} Ne4 {[%emt 0:00:11]} 43. a5 {[%emt 0:01:02]} Rd7+ {[%emt 0:00:16]} 44. Kc2 {[%emt 0:00:04]} f4 {[%emt 0:00:51]} 45. a6 {[%emt 0:00:28]} Ke3 {[%emt 0:00:14]} 46. Rb8 {[%emt 0:01:02]} f3 {[%emt 0:01:45]} 47. Rb7 {[%emt 0:00:46]} Rd2+ {[%emt 0:00:15]} 48. Kc1 {[%emt 0:00:08]} f2 {[%emt 0:00:28]} 49. Rxf7 {[%emt 0:00:34]} Ra2 {[%emt 0:00:03]} 50. a7 {[%emt 0:01:03]} Rxa7 {[%emt 0:00:12]} 0-1

[Event "FIDE World School-ch O-15 2025"]
[Site "Vrnjacka Banja"]
[Date "2025.03.25"]
[Round "6.6"]
[White "Qusaiyn, Altynbek"]
[Black "Durucay, Uygar"]
[Result "1-0"]
[Annotator "NA RC"]
[ECO "B12"]
[WhiteElo "1972"]
[BlackElo "2159"]
[PlyCount "95"]
[EventDate "2025.03.19"]
[EventType "swiss"]
[EventCountry "SRB"]
[SourceTitle "playchess.com"]
[Source "ChessBase"]
[SourceQuality "1"]
[TimeControl "5400+30"]

1. e4 {[%emt 0:00:07]} c6 {[%emt 0:00:22]} 2. d4 {[%emt 0:00:11]} d5 {[%emt 0:00:07]} 3. e5 {[%emt 0:00:23]} Bf5 {[%emt 0:00:22]} 4. h4 {[%emt 0:00:05]} a6 {[%emt 0:00:18]} 5. Bd3 {[%emt 0:17:09]} Bxd3 {[%emt 0:02:33]} 6. Qxd3 {[%emt 0:00:04]} e6 {[%emt 0:00:06]} 7. Bg5 {[%emt 0:09:39]} Qc7 {[%emt 0:18:27]} 8. Nf3 {[%emt 0:01:07]} c5 {[%emt 0:01:30]} 9. dxc5 {[%emt 1:06:15]} Bxc5 {[%emt 0:00:09]} 10. c3 {[%emt 0:00:00]} Nc6 {[%emt 0:08:51]} 11. Qe2 {[%emt 0:00:00]} h6 {[%emt 0:01:00]} 12. Be3 {[%emt 0:00:00]} Bxe3 {[%emt 0:02:55]} 13. Qxe3 {[%emt 0:00:00]} Nge7 {[%emt 0:00:14]} 14. O-O {[%emt 0:00:00]} Nf5 {[%emt 0:00:51]} 15. Qe2 {[%emt 0:00:00]} Qb6 {[%emt 0:01:02]} 16. Re1 {[%emt 0:00:00]} O-O {[%emt 0:59:43]} 17. Qc2 {[%emt 0:00:00]} Rac8 {[%emt 0:00:00]} 18. Nbd2 {[%emt 0:00:00]} Rfd8 {[%emt 0:00:00]} 19. Rad1 {[%emt 0:00:00]} Na5 {[%emt 0:00:00]} 20. Nb3 {[%emt 0:00:00]} Nc4 {[%emt 0:00:00]} 21. g4 {[%emt 0:00:00]} Ne7 {[%emt 0:00:00]} 22. Re2 {[%emt 0:00:00]} Ng6 {[%emt 0:00:00]} 23. Qc1 {[%emt 0:00:00]} Qc7 {[%emt 0:00:00]} 24. Rde1 {[%emt 0:00:00]} f6 {[%emt 0:00:00]} 25. exf6 {[%emt 0:04:33]} Nf4 {[%emt 0:00:00]} 26. Nbd4 {[%emt 0:02:21]} Nxe2+ {[%emt 0:00:00]} 27. Rxe2 {[%emt 0:00:21]} Qf7 {[%emt 0:00:00]} 28. fxg7 {[%emt 0:01:32]} Qxg7 {[%emt 0:00:00]} 29. Qf4 {[%emt 0:00:38]} Rf8 {[%emt 0:00:00]} 30. Qg3 {[%emt 0:00:07]} Rf6 {[%emt 0:00:00]} 31. Nxe6 {[%emt 0:00:25]} Qf7 {[%emt 0:00:00]} 32. Ned4 {[%emt 0:00:48]} Kh8 {[%emt 0:00:00]} 33. b3 {[%emt 0:00:34]} Nd6 {[%emt 0:00:00]} 34. Ne5 {[%emt 0:00:07]} Qc7 {[%emt 0:00:39]} 35. g5 {[%emt 0:01:34]} Rg8 36. Ng4 {[%emt 0:00:00]} Rfg6 {[%emt 0:02:10]} 37. Ne6 {[%emt 0:00:03]} Qe7 {[%emt 0:05:12]} 38. Qe5+ {[%emt 0:00:10]} Kh7 {[%emt 0:00:04]} 39. f4 {[%emt 0:01:06]} h5 {[%emt 0:01:56]} 40. Nf2 {[%emt 0:00:33]} Rf6 {[%emt 0:00:28]} 41. Qxd5 {[%emt 0:00:35]} Qd7 {[%emt 0:01:01]} 42. Nc5 {[%emt 0:00:23]} Qc6 {[%emt 0:00:25]} 43. Re7+ {[%emt 0:00:06]} Kh8 {[%emt 0:00:22]} 44. Qe5 {[%emt 0:00:40]} Nf5 {[%emt 0:00:59]} 45. Re6 {[%emt 0:00:19]} Qf3 {[%emt 0:00:41]} 46. Qxf6+ {[%emt 0:00:06]} Rg7 {[%emt 0:00:04]} 47. Re8+ {[%emt 0:00:06]} Kh7 {[%emt 0:00:01]} 48. Qxf5+ {[%emt 0:00:08]} 1-0